fUST/lending_fUST_20250129
["ID","MTS","AMOUNT","RATE_DAILY","PERIOD"]
[350821270,1738145441129,-500.0,0.00016438,2]
[350821272,1738145441138,-500.0,0.00016438,2]
[350821274,1738145441148,-500.0,0.00016438,2]
[350821276,1738145441157,-500.0,0.00016438,2]
[350821278,1738145441166,-500.0,0.00016438,2]
[350821280,1738145441175,-500.0,0.00016438,2]
[350821282,1738145441185,-500.0,0.00016438,2]
[350821284,1738145441194,-500.0,0.00016438,2]
[350821286,1738145441203,-627.59,0.00016438,2]
[350821288,1738145441213,-500.0,0.00016438,2]
[350821290,1738145441223,-500.0,0.00016438,2]
[350821292,1738145441232,-500.0,0.00016438,2]
[350821294,1738145441242,-2594.08,0.00016438,2]
[350821296,1738145441251,-488.15321743,0.00016438,2]
[350821298,1738145441261,-500.73769112,0.00016438,2]
[350821300,1738145441270,-151.0,0.00016438,2]
[350821302,1738145441279,-151.0,0.00016438,2]
[350821304,1738145441289,-501.83177931,0.00016438,2]
[350821306,1738145441298,-500.0,0.00016438,2]
[350821308,1738145441307,-500.0,0.00016438,2]
[350821310,1738145441316,-861.69,0.00016438,2]
[350821312,1738145441325,-500.0,0.00016438,2]
[350821314,1738145441334,-1046.19547628,0.00016438,2]
[350821316,1738145441348,-170.73452372,0.00016438,2]
[350821318,1738145441358,-160.66647082,0.00016438,2]
[350821441,1738145442961,-339.33352918,0.00016438,2]
[350821443,1738145442972,-500.0,0.00016438,2]
[350821445,1738145442982,-500.0,0.00016438,2]
[350821447,1738145442991,-564.71,0.00016438,2]
[350821449,1738145443001,-501.65443903,0.00016438,2]
[350821451,1738145443011,-500.0,0.00016438,2]
[350821453,1738145443020,-500.0,0.00016438,2]
[350821455,1738145443030,-500.0,0.00016438,2]
[350821457,1738145443039,-469.62746594,0.00016438,2]
[350821459,1738145443048,-500.0,0.00016438,2]
[350821461,1738145443057,-500.0,0.00016438,2]
[350821463,1738145443067,-500.0,0.00016438,2]
[350821465,1738145443077,-500.0,0.00016438,2]
[350821467,1738145443086,-500.0,0.00016438,2]
[350821469,1738145443095,-500.0,0.00016438,2]
[350821472,1738145443105,-699.16,0.00016438,2]
[350821474,1738145443114,-500.0,0.00016438,2]
[350821476,1738145443124,-10357.26,0.00016438,2]
[350821477,1738145443133,-500.0,0.00016438,2]
[350821478,1738145443142,-1529.32,0.00016438,2]
[350821479,1738145443151,-500.0,0.00016438,2]
[350821480,1738145443161,-500.0,0.00016438,2]
[350821481,1738145443170,-3126.02,0.00016438,2]
[350821482,1738145443179,-426.98835418,0.00016438,2]
[350821483,1738145443189,-500.0,0.00016438,2]
[350821484,1738145443198,-500.0,0.00016438,2]
[350821485,1738145443207,-500.0,0.00016438,2]
[350821486,1738145443216,-500.0,0.00016438,2]
[350821487,1738145443229,-500.0,0.00016438,2]
[350821488,1738145443239,-500.0,0.00016438,2]
[350821489,1738145443249,-500.0,0.00016438,2]
[350821491,1738145443258,-491.23104338,0.00016438,2]
[350823481,1738145480295,304.96356,0.00013973,2]
[350823484,1738145883519,88.60977341,0.00010959,2]
[350823485,1738145883547,268.55022659,0.00010959,2]
[350823488,1738146174844,801.85,0.000204,120]
[350823496,1738146471222,297.596548,0.00013973,2]
[350823532,1738146632343,-2247.13311809,0.00015355,2]
[350823533,1738146632353,-250.0,0.00015403,2]
[350823534,1738146632363,-212.925314,0.00015534,2]
[350823535,1738146632372,-153.034,0.0001562,2]
[350823536,1738146632383,-246.5116277,0.00016273,2]
[350823537,1738146632393,-153.32024421,0.00016338,2]
[350823538,1738146632403,-151.0,0.000164,2]
[350823539,1738146632412,-178.919,0.00016437,2]
[350823540,1738146632422,-300.0,0.00016437,2]
[350823541,1738146632432,-500.0,0.00016438,2]
[350823542,1738146632442,-500.0,0.00016438,2]
[350823543,1738146632452,-500.0,0.00016438,2]
[350823544,1738146632461,-500.0,0.00016438,2]
[350823545,1738146632471,-500.0,0.00016438,2]
[350823546,1738146632481,-500.0,0.00016438,2]
[350823547,1738146632490,-366.8700016,0.00016438,2]
[350823548,1738146632591,-133.1299984,0.00016438,2]
[350823549,1738146632600,-500.0,0.00016438,2]
[350823550,1738146632610,-500.0,0.00016438,2]
[350823551,1738146632619,-493.65644839,0.00016438,2]
[350823552,1738146632630,-6.34355161,0.00016438,2]
[350823553,1738146632639,-505.9926167,0.00016438,2]
[350823554,1738146632648,-502.35694747,0.00016438,2]
[350823555,1738146632658,-186.29423469,0.00016438,2]
[350823556,1738146632667,-500.0,0.00016438,2]
[350823557,1738146632676,-500.0,0.00016438,2]
[350823558,1738146632686,-75.18764953,0.00016438,2]
[350823595,1738146638222,-424.81235047,0.00016438,2]
[350823597,1738146638232,-500.0,0.00016438,2]
[350823599,1738146638241,-500.0,0.00016438,2]
[350823601,1738146638251,-500.0,0.00016438,2]
[350823604,1738146638261,-404.90455279,0.00016438,2]
[350823606,1738146638271,-509.58524936,0.00016438,2]
[350823608,1738146638280,-500.0,0.00016438,2]
[350823610,1738146638290,-500.0,0.00016438,2]
[350823612,1738146638299,-500.0,0.00016438,2]
[350823614,1738146638313,-558.46116332,0.00016438,2]
[350823616,1738146638321,-500.0,0.00016438,2]
[350823618,1738146638330,-151.0,0.00016438,2]
[350823620,1738146638341,-500.0,0.00016438,2]
[350823621,1738146638352,-151.0,0.00016438,2]
[350823623,1738146638361,-500.0,0.00016438,2]
[350823625,1738146638371,-500.0,0.00016438,2]
[350823627,1738146638380,-500.0,0.00016438,2]
[350823629,1738146638390,-151.0,0.00016438,2]
[350823631,1738146638399,-500.0,0.00016438,2]
[350823634,1738146638409,-500.0,0.00016438,2]
[350823636,1738146638418,-500.0,0.00016438,2]
[350823638,1738146638427,-500.0,0.00016438,2]
[350823640,1738146638436,-500.0,0.00016438,2]
[350823641,1738146638446,-500.0,0.00016438,2]
[350823644,1738146638455,-500.0,0.00016438,2]
[350823646,1738146638464,-500.0,0.00016438,2]
[350823648,1738146638474,-500.0,0.00016438,2]
[350823650,1738146638483,-500.0,0.00016438,2]
[350823651,1738146638492,-500.0,0.00016438,2]
[350823654,1738146638501,-500.0,0.00016438,2]
[350823657,1738146638522,-500.0,0.00016438,2]
[350823659,1738146638531,-500.0,0.00016438,2]
[350823661,1738146638541,-500.0,0.00016438,2]
[350823663,1738146638551,-500.0,0.00016438,2]
[350823665,1738146638561,-638.12,0.00016438,2]
[350823667,1738146638570,-534.19,0.00016438,2]
[350823669,1738146638580,-500.0,0.00016438,2]
[350823671,1738146638589,-500.0,0.00016438,2]
[350823673,1738146638599,-438.17995673,0.00016438,2]
[350823675,1738146638609,-451.62008108,0.00016438,2]
[350823677,1738146638619,-249.37808094,0.00016438,2]
[350823679,1738146638632,-250.62191906,0.00016438,2]
[350823681,1738146638642,-500.0,0.00016438,2]
[350823683,1738146638652,-500.0,0.00016438,2]
[350823685,1738146638661,-605.16,0.00016438,2]
[350823687,1738146638670,-500.0,0.00016438,2]
[350823689,1738146638680,-500.0,0.00016438,2]
[350823691,1738146638689,-507.25544204,0.00016438,2]
[350823693,1738146638699,-500.0,0.00016438,2]
[350823696,1738146638708,-500.0,0.00016438,2]
[350823698,1738146638718,-500.0,0.00016438,2]
[350823699,1738146638727,-500.0,0.00016438,2]
[350823702,1738146638737,-500.0,0.00016438,2]
[350823703,1738146638747,-429.77640263,0.00016438,2]
[350823705,1738146638756,-258.27315078,0.00016438,2]
[350823707,1738146638766,-580.91291934,0.00016438,2]
[350823710,1738146638776,-500.0,0.00016438,2]
[350823712,1738146638786,-423.43951563,0.00016438,2]
[350823714,1738146638796,-500.0,0.00016438,2]
[350823716,1738146638805,-500.0,0.00016438,2]
[350823718,1738146638814,-411.87256272,0.00016438,2]
[350823720,1738146638824,-500.0,0.00016438,2]
[350823722,1738146638833,-500.0,0.00016438,2]
[350823724,1738146638843,-151.0,0.00016438,2]
[350823726,1738146638854,-500.0,0.00016438,2]
[350823728,1738146638863,-151.0,0.00016438,2]
[350823730,1738146638873,-414.75041187,0.00016438,2]
[350823732,1738146638883,-151.0,0.00016438,2]
[350823749,1738146638892,-2629.9,0.00016438,2]
[350823751,1738146639057,-601.44,0.00016438,2]
[350823753,1738146639067,-269.26031206,0.00016438,2]
[350823755,1738146639076,-500.0,0.00016438,2]
[350823757,1738146639085,-151.0,0.00016438,2]
[350823759,1738146639096,-500.0,0.00016438,2]
[350823761,1738146639105,-500.0,0.00016438,2]
[350823763,1738146639115,-930.8,0.00016438,2]
[350823765,1738146639124,-151.0,0.00016438,2]
[350823767,1738146639133,-508.76895662,0.00016438,2]
[350823769,1738146639143,-500.0,0.00016438,2]
[350823771,1738146639152,-500.0,0.00016438,2]
[350823773,1738146639161,-291.15840725,0.00016438,2]
[350823775,1738146639173,-208.84159275,0.00016438,2]
[350823777,1738146639183,-397.16419567,0.00016438,2]
[350823779,1738146639193,-578.44,0.00016438,2]
[350823781,1738146639202,-11002.8,0.00016438,2]
[350823783,1738146639212,-1208.5,0.00016438,2]
[350823785,1738146639222,-500.0,0.00016438,2]
[350823787,1738146639232,-500.0,0.00016438,2]
[350823790,1738146639242,-151.0,0.00016438,2]
[350823792,1738146639252,-500.0,0.00016438,2]
[350823794,1738146639262,-500.0,0.00016438,2]
[350823796,1738146639272,-500.0,0.00016438,2]
[350823798,1738146639282,-500.0,0.00016438,2]
[350823800,1738146639291,-645.01194202,0.00016438,2]
[350823802,1738146639302,-500.0,0.00016438,2]
[350823804,1738146639313,-500.0,0.00016438,2]
[350823806,1738146639323,-500.0,0.00016438,2]
[350823808,1738146639332,-4183.69,0.00016438,2]
[350823810,1738146639342,-500.0,0.00016438,2]
[350823812,1738146639353,-500.0,0.00016438,2]
[350823814,1738146639362,-714.54,0.00016438,2]
[350823816,1738146639371,-500.0,0.00016438,2]
[350823818,1738146639383,-500.0,0.00016438,2]
[350823820,1738146639392,-500.0,0.00016438,2]
[350823822,1738146639402,-500.0,0.00016438,2]
[350823824,1738146639412,-500.0,0.00016438,2]
[350823826,1738146639422,-500.0,0.00016438,2]
[350823828,1738146639431,-500.0,0.00016438,2]
[350823830,1738146639440,-500.0,0.00016438,2]
[350823832,1738146639450,-151.0,0.00016438,2]
[350823834,1738146639459,-1545.28,0.00016438,2]
[350823836,1738146639469,-500.0,0.00016438,2]
[350823838,1738146639478,-151.0,0.00016438,2]
[350823840,1738146639487,-275.75961333,0.00016438,2]
[350823842,1738146639498,-500.0,0.00016438,2]
[350823844,1738146639507,-500.0,0.00016438,2]
[350823846,1738146639516,-523.91799576,0.00016438,2]
[350823848,1738146639526,-500.0,0.00016438,2]
[350823850,1738146639535,-500.0,0.00016438,2]
[350823852,1738146639544,-805.71,0.00016438,2]
[350823854,1738146639554,-500.0,0.00016438,2]
[350823856,1738146639563,-500.0,0.00016438,2]
[350823858,1738146639572,-500.0,0.00016438,2]
[350823860,1738146639581,-501.08047821,0.00016438,2]
[350823862,1738146639590,-500.0,0.00016438,2]
[350823864,1738146639599,-500.0,0.00016438,2]
[350823866,1738146639608,-253.23026269,0.00016438,2]
[350823868,1738146639620,-246.76973731,0.00016438,2]
[350823870,1738146639630,-68.29302113,0.00016438,2]
[350823948,1738146640329,-441.07454584,0.00016438,2]
[350823950,1738146640340,-1105.41,0.00016438,2]
[350823952,1738146640350,-500.0,0.00016438,2]
[350823954,1738146640359,-500.0,0.00016438,2]
[350823956,1738146640368,-500.0,0.00016438,2]
[350823958,1738146640378,-501.19224088,0.00016438,2]
[350823960,1738146640388,-500.0,0.00016438,2]
[350823962,1738146640397,-500.0,0.00016438,2]
[350823963,1738146640406,-500.0,0.00016438,2]
[350823965,1738146640416,-500.0,0.00016438,2]
[350823967,1738146640425,-500.0,0.00016438,2]
[350823969,1738146640434,-500.0,0.00016438,2]
[350823971,1738146640443,-500.0,0.00016438,2]
[350823973,1738146640452,-500.0,0.00016438,2]
[350823975,1738146640461,-500.0,0.00016438,2]
[350823977,1738146640472,-371.82321351,0.00016438,2]
[350823979,1738146640481,-500.0,0.00016438,2]
[350823981,1738146640490,-500.0,0.00016438,2]
[350823983,1738146640499,-500.0,0.00016438,2]
[350823985,1738146640508,-500.0,0.00016438,2]
[350823987,1738146640517,-505.5605077,0.00016438,2]
[350823989,1738146640526,-501.59706315,0.00016438,2]
[350823991,1738146640536,-500.0,0.00016438,2]
[350823993,1738146640548,-25.80172303,0.00016438,2]
[350824274,1738146643183,-474.19827697,0.00016438,2]
[350824276,1738146643193,-500.0,0.00016438,2]
[350824278,1738146643202,-500.0,0.00016438,2]
[350824280,1738146643211,-500.0,0.00016438,2]
[350824282,1738146643221,-196.75606762,0.00016438,2]
[350824284,1738146643232,-303.24393238,0.00016438,2]
[350824286,1738146643242,-500.0,0.00016438,2]
[350824288,1738146643251,-500.0,0.00016438,2]
[350824290,1738146643260,-500.0,0.00016438,2]
[350824292,1738146643269,-500.0,0.00016438,2]
[350824294,1738146643279,-500.0,0.00016438,2]
[350824296,1738146643288,-1472.86,0.00016438,2]
[350824298,1738146643298,-541.19,0.00016438,2]
[350824300,1738146643309,-3116.63,0.00016438,2]
[350824302,1738146643319,-500.0,0.00016438,2]
[350824304,1738146643328,-36.42587178,0.00016438,2]
[350824306,1738146643340,-463.57412822,0.00016438,2]
[350824309,1738146643351,-554.40325346,0.00016438,2]
[350824312,1738146643361,-327.04543928,0.00016438,2]
[350824550,1738146646200,-172.95456072,0.00016438,2]
[350824551,1738146646210,-151.0,0.00016438,2]
[350824553,1738146646219,-226.94555121,0.000165,2]
[350824613,1738147323448,290.597886,0.00013973,2]
[350824614,1738147455515,1000.0,0.00017,17]
[350824667,1738147832533,-250.0,0.00015472,2]
[350824669,1738147832542,-152.928,0.0001568,2]
[350824670,1738147832552,-4224.86902275,0.00016,2]
[350824671,1738147832561,-156.52367416,0.00016338,2]
[350824672,1738147832571,-172.034,0.00016437,2]
[350824674,1738147832581,-261.30346112,0.00016437,2]
[350824675,1738147832591,-467.17298683,0.00016437,2]
[350824676,1738147832600,-300.0,0.00016437,2]
[350824677,1738147832610,-500.0,0.00016438,2]
[350824678,1738147832619,-500.0,0.00016438,2]
[350824679,1738147832628,-500.0,0.00016438,2]
[350824680,1738147832638,-500.0,0.00016438,2]
[350824681,1738147832647,-500.0,0.00016438,2]
[350824682,1738147832657,-509.97871439,0.00016438,2]
[350824683,1738147832666,-500.0,0.00016438,2]
[350824684,1738147832676,-500.0,0.00016438,2]
[350824685,1738147832685,-500.0,0.00016438,2]
[350824686,1738147832695,-500.0,0.00016438,2]
[350824687,1738147832709,-500.0,0.00016438,2]
[350824688,1738147832718,-632.37,0.00016438,2]
[350824690,1738147832728,-530.44560759,0.00016438,2]
[350824692,1738147832737,-615.07176243,0.00016438,2]
[350824694,1738147832757,-500.0,0.00016438,2]
[350824695,1738147832776,-151.0,0.00016438,2]
[350824696,1738147832785,-500.0,0.00016438,2]
[350824698,1738147832796,-434.61895052,0.00016438,2]
[350824700,1738147832804,-333.5499199,0.00016438,2]
[350824702,1738147832814,-151.0,0.00016438,2]
[350824704,1738147832822,-500.0,0.00016438,2]
[350824706,1738147832832,-500.0,0.00016438,2]
[350824708,1738147832841,-600.78,0.00016438,2]
[350824710,1738147832850,-500.0,0.00016438,2]
[350824712,1738147832860,-500.0,0.00016438,2]
[350824714,1738147832870,-503.0099255,0.00016438,2]
[350824716,1738147832879,-500.0,0.00016438,2]
[350824718,1738147832889,-151.0,0.00016438,2]
[350824720,1738147832899,-500.0,0.00016438,2]
[350824722,1738147832908,-500.90073657,0.00016438,2]
[350824724,1738147832918,-500.0,0.00016438,2]
[350824726,1738147832927,-500.0,0.00016438,2]
[350824728,1738147832937,-151.0,0.00016438,2]
[350824730,1738147832946,-500.0,0.00016438,2]
[350824732,1738147832955,-500.0,0.00016438,2]
[350824734,1738147832965,-500.0,0.00016438,2]
[350824736,1738147832974,-500.0,0.00016438,2]
[350824738,1738147832983,-500.0,0.00016438,2]
[350824740,1738147832993,-500.0,0.00016438,2]
[350824742,1738147833002,-500.0,0.00016438,2]
[350824744,1738147833011,-500.0,0.00016438,2]
[350824746,1738147833020,-500.0,0.00016438,2]
[350824748,1738147833030,-500.0,0.00016438,2]
[350824750,1738147833040,-500.0,0.00016438,2]
[350824752,1738147833050,-594.6062647,0.00016438,2]
[350824753,1738147833060,-629.55,0.00016438,2]
[350824754,1738147833069,-501.31571082,0.00016438,2]
[350824755,1738147833204,-500.0,0.00016438,2]
[350824756,1738147833214,-500.0,0.00016438,2]
[350824757,1738147833224,-172.90392042,0.00016438,2]
[350824758,1738147833234,-501.13249908,0.00016438,2]
[350824759,1738147833244,-454.79201904,0.00016438,2]
[350824760,1738147833254,-500.0,0.00016438,2]
[350824761,1738147833264,-410.65041535,0.00016438,2]
[350824762,1738147833273,-500.0,0.00016438,2]
[350824763,1738147833283,-500.0,0.00016438,2]
[350824764,1738147833292,-503.54131032,0.00016438,2]
[350824765,1738147833301,-500.0,0.00016438,2]
[350824766,1738147833311,-504.09004463,0.00016438,2]
[350824767,1738147833321,-500.0,0.00016438,2]
[350824768,1738147833330,-500.0,0.00016438,2]
[350824769,1738147833340,-500.0,0.00016438,2]
[350824770,1738147833350,-500.0,0.00016438,2]
[350824771,1738147833359,-500.0,0.00016438,2]
[350824772,1738147833369,-151.0,0.00016438,2]
[350824773,1738147833378,-151.0,0.00016438,2]
[350824774,1738147833387,-501.5144853,0.00016438,2]
[350824775,1738147833397,-500.0,0.00016438,2]
[350824776,1738147833407,-151.0,0.00016438,2]
[350824777,1738147833417,-151.0,0.00016438,2]
[350824778,1738147833427,-506.20296024,0.00016438,2]
[350824779,1738147833438,-500.0,0.00016438,2]
[350824780,1738147833447,-151.0,0.00016438,2]
[350824781,1738147833457,-500.0,0.00016438,2]
[350824782,1738147833467,-151.0,0.00016438,2]
[350824783,1738147833476,-500.0,0.00016438,2]
[350824784,1738147833486,-500.0,0.00016438,2]
[350824785,1738147833496,-151.0,0.00016438,2]
[350824786,1738147833505,-500.0,0.00016438,2]
[350824787,1738147833515,-500.0,0.00016438,2]
[350824788,1738147833524,-500.0,0.00016438,2]
[350824789,1738147833534,-500.0,0.00016438,2]
[350824790,1738147833544,-500.0,0.00016438,2]
[350824791,1738147833553,-500.0,0.00016438,2]
[350824792,1738147833562,-500.0,0.00016438,2]
[350824793,1738147833571,-500.0,0.00016438,2]
[350824794,1738147833581,-500.0,0.00016438,2]
[350824795,1738147833590,-500.0,0.00016438,2]
[350824796,1738147833599,-500.0,0.00016438,2]
[350824797,1738147833608,-500.0,0.00016438,2]
[350824798,1738147833618,-500.0,0.00016438,2]
[350824799,1738147833630,-151.0,0.00016438,2]
[350824800,1738147833641,-151.0,0.00016438,2]
[350824801,1738147833651,-151.0,0.00016438,2]
[350824802,1738147833662,-500.0,0.00016438,2]
[350824803,1738147833672,-507.36415576,0.00016438,2]
[350824804,1738147833681,-151.0,0.00016438,2]
[350824805,1738147833691,-151.0,0.00016438,2]
[350824806,1738147833702,-151.0,0.00016438,2]
[350824807,1738147833712,-500.0,0.00016438,2]
[350824808,1738147833721,-500.0,0.00016438,2]
[350824809,1738147833732,-500.0,0.00016438,2]
[350824810,1738147833743,-500.0,0.00016438,2]
[350824811,1738147833753,-500.0,0.00016438,2]
[350824812,1738147833763,-500.0,0.00016438,2]
[350824813,1738147833772,-259.56569,0.00016438,2]
[350824814,1738147833783,-500.0,0.00016438,2]
[350824815,1738147833793,-500.0,0.00016438,2]
[350824816,1738147833803,-500.0,0.00016438,2]
[350824817,1738147833813,-215.20948258,0.00016438,2]
[350824818,1738147833822,-500.0,0.00016438,2]
[350824819,1738147833832,-500.0,0.00016438,2]
[350824820,1738147833841,-500.0,0.00016438,2]
[350824821,1738147833851,-553.64212849,0.00016438,2]
[350824822,1738147833860,-151.810544,0.00016438,2]
[350824823,1738147833869,-500.0,0.00016438,2]
[350824824,1738147833880,-500.0,0.00016438,2]
[350824825,1738147833889,-151.0,0.00016438,2]
[350824826,1738147833899,-151.0,0.00016438,2]
[350824827,1738147833909,-221.548548,0.00016438,2]
[350824828,1738147833919,-604.59,0.00016438,2]
[350824829,1738147833929,-404.56579329,0.00016438,2]
[350824830,1738147833938,-500.0,0.00016438,2]
[350824831,1738147833948,-500.0,0.00016438,2]
[350824832,1738147833957,-500.0,0.00016438,2]
[350824833,1738147833967,-500.0,0.00016438,2]
[350824834,1738147833976,-500.0,0.00016438,2]
[350824835,1738147833986,-500.0,0.00016438,2]
[350824836,1738147833995,-500.0,0.00016438,2]
[350824837,1738147834005,-212.51703915,0.00016438,2]
[350824838,1738147834014,-500.0,0.00016438,2]
[350824839,1738147834024,-500.0,0.00016438,2]
[350824840,1738147834033,-500.0,0.00016438,2]
[350824841,1738147834043,-500.0,0.00016438,2]
[350824842,1738147834052,-500.0,0.00016438,2]
[350824843,1738147834061,-576.38,0.00016438,2]
[350824844,1738147834070,-151.0,0.00016438,2]
[350824845,1738147834080,-151.0,0.00016438,2]
[350824846,1738147834090,-151.0,0.00016438,2]
[350824847,1738147834099,-273.733632,0.00016438,2]
[350824848,1738147834109,-500.0,0.00016438,2]
[350824849,1738147834118,-2899.8,0.00016438,2]
[350824850,1738147834128,-500.0,0.00016438,2]
[350824851,1738147834138,-500.0,0.00016438,2]
[350824852,1738147834148,-151.0,0.00016438,2]
[350824853,1738147834157,-151.0,0.00016438,2]
[350824854,1738147834167,-151.0,0.00016438,2]
[350824855,1738147834176,-500.0,0.00016438,2]
[350824856,1738147834185,-151.0,0.00016438,2]
[350824857,1738147834195,-500.0,0.00016438,2]
[350824858,1738147834204,-500.69885235,0.00016438,2]
[350824859,1738147834213,-500.0,0.00016438,2]
[350824860,1738147834223,-500.0,0.00016438,2]
[350824861,1738147834232,-500.0,0.00016438,2]
[350824862,1738147834242,-151.0,0.00016438,2]
[350824863,1738147834252,-1047.81,0.00016438,2]
[350824864,1738147834261,-500.0,0.00016438,2]
[350824865,1738147834270,-500.0,0.00016438,2]
[350824866,1738147834280,-151.0,0.00016438,2]
[350824867,1738147834290,-151.0,0.00016438,2]
[350824868,1738147834300,-151.0,0.00016438,2]
[350824869,1738147834310,-500.0,0.00016438,2]
[350824870,1738147834320,-151.0,0.00016438,2]
[350824871,1738147834330,-500.0,0.00016438,2]
[350824872,1738147834340,-500.0,0.00016438,2]
[350824873,1738147834350,-664.06,0.00016438,2]
[350824874,1738147834360,-1291.99,0.00016438,2]
[350824875,1738147834370,-500.0,0.00016438,2]
[350824876,1738147834380,-500.0,0.00016438,2]
[350824877,1738147834390,-500.0,0.00016438,2]
[350824878,1738147834403,-11510.95,0.00016438,2]
[350824879,1738147834414,-500.0,0.00016438,2]
[350824880,1738147834423,-500.0,0.00016438,2]
[350824881,1738147834432,-3395.86,0.00016438,2]
[350824882,1738147834442,-503.6355638,0.00016438,2]
[350824883,1738147834452,-500.0,0.00016438,2]
[350824884,1738147834462,-500.0,0.00016438,2]
[350824885,1738147834472,-500.0,0.00016438,2]
[350824886,1738147834482,-500.0,0.00016438,2]
[350824887,1738147834496,-151.0,0.00016438,2]
[350824888,1738147834510,-151.0,0.00016438,2]
[350824889,1738147834524,-151.0,0.00016438,2]
[350824890,1738147834538,-500.0,0.00016438,2]
[350824891,1738147834552,-373.6661641,0.00016438,2]
[350824892,1738147834563,-500.0,0.00016438,2]
[350824893,1738147834574,-168.16974547,0.00016438,2]
[350824894,1738147834587,-500.0,0.00016438,2]
[350824895,1738147834600,-500.0,0.00016438,2]
[350824896,1738147834611,-500.0,0.00016438,2]
[350824897,1738147834623,-205.170976,0.00016438,2]
[350824898,1738147834635,-205.170976,0.00016438,2]
[350824899,1738147834648,-205.170976,0.00016438,2]
[350824900,1738147834665,-500.0,0.00016438,2]
[350824901,1738147834679,-205.170976,0.00016438,2]
[350824902,1738147834692,-205.170976,0.00016438,2]
[350824903,1738147834709,-205.170976,0.00016438,2]
[350824904,1738147834723,-809.48,0.00016438,2]
[350824905,1738147834736,-500.0,0.00016438,2]
[350824906,1738147834748,-500.0,0.00016438,2]
[350824907,1738147834759,-1644.48,0.00016438,2]
[350824908,1738147834771,-500.0,0.00016438,2]
[350824909,1738147834782,-500.0,0.00016438,2]
[350824910,1738147834793,-500.0,0.00016438,2]
[350824911,1738147834805,-500.0,0.00016438,2]
[350824912,1738147834817,-500.0,0.00016438,2]
[350824913,1738147834829,-500.0,0.00016438,2]
[350824914,1738147834840,-500.0,0.00016438,2]
[350824915,1738147834852,-500.0,0.00016438,2]
[350824916,1738147834863,-500.0,0.00016438,2]
[350824917,1738147834873,-500.0,0.00016438,2]
[350824918,1738147834884,-500.0,0.00016438,2]
[350824919,1738147834895,-500.0,0.00016438,2]
[350824920,1738147834910,-500.0,0.00016438,2]
[350824921,1738147834921,-500.0,0.00016438,2]
[350824922,1738147834934,-500.0,0.00016438,2]
[350824923,1738147834946,-256.54192674,0.00016438,2]
[350824924,1738147834965,-243.45807326,0.00016438,2]
[350824925,1738147834977,-390.44900473,0.00016438,2]
[350824926,1738147835003,-446.33099527,0.00016438,2]
[350824927,1738147835015,-1135.05,0.00016438,2]
[350824928,1738147835027,-465.87013007,0.00016438,2]
[350824929,1738147835039,-1797.94887466,0.00016438,2]
[350824951,1738147840474,-2406.75112534,0.00016438,2]
[350824952,1738147840485,-500.0,0.00016438,2]
[350824953,1738147840494,-500.0,0.00016438,2]
[350824954,1738147840504,-509.73,0.00016438,2]